[Event "Schack-SM 2023: Veteran-SM 50+"]
[Site "Helsingborg Arena, Mellersta Stenbocksgatan 14, Helsingborg, Sweden"]
[Date "2023.07.07"]
[Round "7.4"]
[White "Petersson, Kjell"]
[Black "Johansson, Ingemar 1966"]
[Result "1-0"]
[TimeControl "90 minutes for 40 moves + 30 minutes for the rest of games + 30 seconds per move from move one."]
[WhiteTitle "CM"]
[WhiteElo "2061"]
[BlackElo "1839"]

1. d4 {[%clk 01:30:58]} e6 {[%clk 01:30:39]} {[%emt 00:00:23]} 2. Bf4 {[%clk
01:31:22]} {[%emt 00:00:06]} Nf6 {[%clk 01:30:49]} {[%emt 00:00:19]} 3. e3
{[%clk 01:31:45]} {[%emt 00:00:07]} d5 {[%clk 01:30:30]} {[%emt 00:00:49]} 4.
Nf3 {[%clk 01:31:48]} {[%emt 00:00:28]} c5 {[%clk 01:30:33]} {[%emt 00:00:26]}
5. c3 {[%clk 01:32:09]} {[%emt 00:00:09]} Bd6 {[%clk 01:30:00]} {[%emt
00:01:03]} 6. Nbd2 {[%clk 01:31:32]} {[%emt 00:01:08]} cxd4 {[%clk 01:25:52]}
{[%emt 00:04:38]} 7. Bxd6 {[%clk 01:15:39]} {[%emt 00:16:23]} dxe3 {[%clk
01:19:39]} {[%emt 00:06:42]} 8. Ba3 {[%clk 01:14:46]} {[%emt 00:01:24]} exd2+
{[%clk 01:19:11]} {[%emt 00:00:57]} 9. Qxd2 {[%clk 01:13:41]} {[%emt 00:01:36]}
Nc6 {[%clk 01:15:38]} {[%emt 00:04:02]} 10. Be2 {[%clk 01:07:38]} {[%emt
00:06:34]} Ne7 {[%clk 01:07:23]} {[%emt 00:08:44]} 11. h4 {[%clk 01:04:25]}
{[%emt 00:03:43]} h6 {[%clk 01:01:29]} {[%emt 00:06:25]} 12. Ne5 {[%clk
01:00:27]} {[%emt 00:04:28]} Bd7 {[%clk 00:57:27]} {[%emt 00:04:32]} 13. Qf4
{[%clk 00:48:59]} {[%emt 00:11:57]} Rc8 {[%clk 00:49:06]} {[%emt 00:08:51]} 14.
g4 {[%clk 00:44:56]} {[%emt 00:04:33]} Nc6 {[%clk 00:36:44]} {[%emt 00:12:53]}
15. g5 {[%clk 00:37:25]} {[%emt 00:08:00]} Nxe5 {[%clk 00:33:57]} {[%emt
00:03:17]} 16. Qxe5 {[%clk 00:37:52]} {[%emt 00:00:04]} hxg5 {[%clk 00:33:10]}
{[%emt 00:01:16]} 17. Qxg5 {[%clk 00:38:12]} {[%emt 00:00:10]} g6 {[%clk
00:31:39]} {[%emt 00:02:01]} 18. Qe5 {[%clk 00:36:44]} {[%emt 00:01:59]} Rh7
{[%clk 00:28:23]} {[%emt 00:03:45]} 19. O-O-O {[%clk 00:29:58]} {[%emt
00:07:16]} Bc6 {[%clk 00:21:47]} {[%emt 00:07:06]} 20. Bf3 {[%clk 00:24:17]}
{[%emt 00:06:12]} b6 {[%clk 00:20:39]} {[%emt 00:01:38]} 21. h5 {[%clk
00:18:06]} {[%emt 00:06:40]} Nd7 {[%clk 00:18:22]} {[%emt 00:02:47]} 22. Qd6
{[%clk 00:14:21]} {[%emt 00:04:15]} Qg5+ {[%clk 00:15:11]} {[%emt 00:03:41]} 23.
Kb1 {[%clk 00:13:28]} {[%emt 00:01:24]} Nc5 {[%clk 00:15:07]} {[%emt 00:00:33]}
24. hxg6 {[%clk 00:12:29]} {[%emt 00:01:29]} Qxg6+ {[%clk 00:13:32]} {[%emt
00:02:04]} 25. Ka1 {[%clk 00:12:44]} {[%emt 00:00:16]} Rxh1 {[%clk 00:11:32]}
{[%emt 00:02:31]} 26. Rxh1 {[%clk 00:13:04]} {[%emt 00:00:10]} Qg7 {[%clk
00:11:18]} {[%emt 00:00:43]} 27. Bxc5 {[%clk 00:06:33]} {[%emt 00:07:02]} bxc5
{[%clk 00:11:07]} {[%emt 00:00:41]} 28. Qxc5 {[%clk 00:06:49]} {[%emt
00:00:14]} Rc7 {[%clk 00:07:21]} {[%emt 00:04:16]} 29. Qd6 {[%clk 00:06:21]}
{[%emt 00:00:58]} Rc8 {[%clk 00:06:51]} {[%emt 00:01:00]} 30. a3 {[%clk
00:04:18]} {[%emt 00:02:32]} Bb7 {[%clk 00:02:46]} {[%emt 00:04:35]} 31. Be2
{[%clk 00:03:55]} {[%emt 00:00:54]} a6 {[%clk 00:01:12]} {[%emt 00:02:04]} 32.
Bxa6 {[%clk 00:03:36]} {[%emt 00:00:49]} Bxa6 {[%clk 00:01:03]} {[%emt
00:00:38]} 33. Qxa6 {[%clk 00:04:03]} {[%emt 00:00:03]} Rc4 {[%clk 00:01:17]}
{[%emt 00:00:16]} 34. Ka2 {[%clk 00:02:39]} {[%emt 00:01:55]} Ke7 {[%clk
00:01:27]} {[%emt 00:00:20]} 35. Qa7+ {[%clk 00:02:30]} {[%emt 00:00:38]} Kd6
{[%clk 00:01:24]} {[%emt 00:00:33]} 36. Qb8+ {[%clk 00:02:54]} {[%emt
00:00:06]} Ke7 {[%clk 00:01:37]} {[%emt 00:00:18]} 37. Rh8 {[%clk 00:03:08]}
{[%emt 00:00:16]} Kf6 {[%clk 00:00:43]} {[%emt 00:01:23]} 38. Qd8+ {[%clk
00:03:22]} {[%emt 00:00:16]} Kf5 {[%clk 00:00:40]} {[%emt 00:00:34]} 39. Rh5+
{[%clk 00:03:34]} {[%emt 00:00:16]} Ke4 {[%clk 00:00:50]} {[%emt 00:00:21]} 40.
Rh3 {[%clk 00:00:35]} {[%emt 00:03:29]} f6 {[%clk 00:00:47]} {[%emt 00:00:34]}
41. Qd6 {[%clk 00:25:33]} {[%emt 00:05:32]} 1-0

[Event "Schack-SM 2023: Mastarklassen"]
[Site "Helsingborg Arena, Mellersta Stenbocksgatan 14, Helsingborg, Sweden"]
[Date "2023.07.07"]
[Round "7.4"]
[White "Mardell, Jimmy"]
[Black "Sundin, Emanuel"]
[Result "1/2-1/2"]
[TimeControl "90 minutes for 40 moves + 30 minutes for the rest of games + 30 seconds per move from move one."]
[WhiteElo "2160"]
[BlackElo "2103"]

1. d4 {[%clk 01:30:54]} {[%emt 00:00:04]} Nf6 {[%clk 01:30:43]} {[%emt
00:00:17]} 2. c4 {[%clk 01:31:16]} {[%emt 00:00:09]} e6 {[%clk 01:30:40]}
{[%emt 00:00:33]} 3. Nc3 {[%clk 01:31:28]} {[%emt 00:00:19]} Bb4 {[%clk
01:30:54]} {[%emt 00:00:15]} 4. e3 {[%clk 01:31:19]} {[%emt 00:00:39]} O-O
{[%clk 01:31:05]} {[%emt 00:00:19]} 5. Bd3 {[%clk 01:28:39]} {[%emt 00:03:09]}
d5 {[%clk 01:29:31]} {[%emt 00:02:04]} 6. Nge2 {[%clk 01:28:57]} {[%emt
00:00:12]} dxc4 {[%clk 01:27:44]} {[%emt 00:02:18]} 7. Bxc4 {[%clk 01:27:23]}
{[%emt 00:02:04]} c5 {[%clk 01:27:48]} {[%emt 00:00:26]} 8. O-O {[%clk
01:25:26]} {[%emt 00:02:27]} cxd4 {[%clk 01:27:36]} {[%emt 00:00:42]} 9. exd4
{[%clk 01:25:50]} {[%emt 00:00:06]} Bd6 {[%clk 01:27:21]} {[%emt 00:00:45]} 10.
Nb5 {[%clk 01:13:55]} {[%emt 00:12:25]} Nc6 {[%clk 00:40:53]} {[%emt 00:46:58]}
11. Nxd6 {[%clk 01:10:52]} {[%emt 00:03:33]} Qxd6 {[%clk 00:40:38]} {[%emt
00:00:45]} 12. Bf4 {[%clk 01:08:29]} {[%emt 00:02:52]} Qd7 {[%clk 00:40:49]}
{[%emt 00:00:20]} 13. Rc1 {[%clk 00:51:49]} {[%emt 00:17:09]} a6 {[%clk
00:36:28]} {[%emt 00:04:52]} 14. Qd2 {[%clk 00:40:18]} {[%emt 00:12:01]} b5
{[%clk 00:35:34]} {[%emt 00:01:24]} 15. Bd3 {[%clk 00:40:20]} {[%emt 00:00:28]}
Bb7 {[%clk 00:35:00]} {[%emt 00:01:04]} 16. Rfd1 {[%clk 00:39:14]} {[%emt
00:01:35]} Rac8 {[%clk 00:33:36]} {[%emt 00:01:54]} 17. Bg5 {[%clk 00:31:52]}
{[%emt 00:07:53]} Nd5 {[%clk 00:32:19]} {[%emt 00:01:47]} 18. Bb1 {[%clk
00:31:12]} {[%emt 00:01:10]} Nce7 {[%clk 00:31:27]} {[%emt 00:01:22]} 19. Qd3
{[%clk 00:29:55]} {[%emt 00:01:47]} Ng6 {[%clk 00:30:42]} {[%emt 00:01:14]} 20.
h4 {[%clk 00:28:14]} {[%emt 00:02:12]} Rxc1 {[%clk 00:18:11]} {[%emt 00:13:01]}
21. Rxc1 {[%clk 00:28:10]} {[%emt 00:00:35]} Rc8 {[%clk 00:18:28]} {[%emt
00:00:13]} 22. Rxc8+ {[%clk 00:24:32]} {[%emt 00:04:08]} Qxc8 {[%clk 00:18:45]}
{[%emt 00:00:13]} 23. h5 {[%clk 00:20:34]} {[%emt 00:04:28]} Nf8 {[%clk
00:18:57]} {[%emt 00:00:17]} 24. h6 {[%clk 00:20:50]} {[%emt 00:00:14]} Ng6
{[%clk 00:18:34]} {[%emt 00:00:54]} 25. Qg3 {[%clk 00:18:30]} {[%emt 00:02:49]}
Qc7 {[%clk 00:16:24]} {[%emt 00:02:40]} 26. Be4 {[%clk 00:13:10]} {[%emt
00:05:50]} Qxg3 {[%clk 00:15:24]} {[%emt 00:01:30]} 27. Nxg3 {[%clk 00:13:36]}
{[%emt 00:00:04]} f6 {[%clk 00:14:53]} {[%emt 00:01:01]} 28. Bd2 {[%clk
00:13:44]} {[%emt 00:00:21]} Bc6 {[%clk 00:12:30]} {[%emt 00:02:54]} 29. hxg7
{[%clk 00:11:11]} {[%emt 00:03:03]} Kxg7 {[%clk 00:11:54]} {[%emt 00:01:06]} 30.
f3 {[%clk 00:06:10]} {[%emt 00:05:31]} Nde7 {[%clk 00:10:14]} {[%emt 00:02:09]}
31. Kf2 {[%clk 00:05:32]} {[%emt 00:01:09]} f5 {[%clk 00:04:49]} {[%emt
00:05:56]} 32. Bd3 {[%clk 00:05:49]} {[%emt 00:00:12]} Bd5 {[%clk 00:05:06]}
{[%emt 00:00:14]} 33. b3 {[%clk 00:06:04]} {[%emt 00:00:14]} Nc6 {[%clk
00:05:04]} {[%emt 00:00:32]} 34. Ne2 {[%clk 00:06:00]} {[%emt 00:00:34]} Kf6
{[%clk 00:04:45]} {[%emt 00:00:48]} 35. g3 {[%clk 00:03:12]} {[%emt 00:03:19]}
h5 {[%clk 00:03:49]} {[%emt 00:01:27]} 36. Nc3 {[%clk 00:01:45]} {[%emt
00:01:57]} Nge7 {[%clk 00:01:51]} {[%emt 00:02:28]} 37. Ke3 {[%clk 00:01:34]}
{[%emt 00:00:40]} Nb4 {[%clk 00:01:25]} {[%emt 00:00:56]} 38. Bb1 {[%clk
00:00:46]} {[%emt 00:01:18]} Bc6 {[%clk 00:01:40]} {[%emt 00:00:15]} 39. Kf2
{[%clk 00:00:39]} {[%emt 00:00:36]} Nbd5 {[%clk 00:01:22]} {[%emt 00:00:48]} 40.
Ne2 {[%clk 00:00:39]} {[%emt 00:00:30]} Ng6 {[%clk 00:01:17]} {[%emt 00:00:36]}
41. Ba5 {[%clk 00:21:07]} {[%emt 00:10:01]} h4 {[%clk 00:24:21]} {[%emt
00:07:27]} 42. Bd8+ {[%clk 00:20:16]} {[%emt 00:01:21]} Nde7 {[%clk 00:24:34]}
{[%emt 00:00:17]} 43. gxh4 {[%clk 00:20:09]} {[%emt 00:00:37]} Nxh4 {[%clk
00:24:52]} {[%emt 00:00:12]} 44. f4 {[%clk 00:19:14]} {[%emt 00:01:25]} Nhg6
{[%clk 00:24:32]} {[%emt 00:00:50]} 45. b4 {[%clk 00:13:53]} {[%emt 00:05:52]}
Be4 {[%clk 00:15:49]} {[%emt 00:09:12]} 46. Bxe4 fxe4 {[%clk 00:16:18]} 47. Ke3
{[%clk 00:12:42]} {[%emt 00:00:19]} Kf5 {[%clk 00:16:30]} {[%emt 00:00:19]} 48.
Bxe7 Nxe7 {[%clk 00:16:58]} 49. Ng3+ {[%clk 00:10:09]} {[%emt 00:00:23]} Kg4
{[%clk 00:17:16]} {[%emt 00:00:13]} 50. Nf1 {[%clk 00:06:51]} {[%emt 00:03:48]}
Kf5 {[%clk 00:17:14]} {[%emt 00:00:33]} 51. Ng3+ {[%clk 00:07:10]} {[%emt
00:00:10]} Kg4 {[%clk 00:17:25]} {[%emt 00:00:18]} 52. Nf1 {[%clk 00:06:18]}
{[%emt 00:01:22]} Kf5 {[%clk 00:04:44]} {[%emt 00:13:12]} 1/2-1/2

[Event "Schack-SM 2023: Veteran-SM 65+"]
[Site "Helsingborg Arena, Mellersta Stenbocksgatan 14, Helsingborg, Sweden"]
[Date "2023.07.07"]
[Round "7.5"]
[White "Holst, Conny"]
[Black "Sigeman, Johan"]
[Result "1/2-1/2"]
[TimeControl "90 minutes for 40 moves + 30 minutes for the rest of games + 30 seconds per move from move one."]
[WhiteTitle "FM"]
[WhiteElo "2156"]
[BlackElo "2052"]

1. d4 {[%clk 01:30:51]} {[%emt 00:00:08]} Nf6 {[%clk 01:30:55]} {[%emt
00:00:06]} 2. c4 {[%clk 01:31:07]} {[%emt 00:00:13]} e6 {[%clk 01:31:15]}
{[%emt 00:00:11]} 3. Nc3 {[%clk 01:30:55]} {[%emt 00:00:42]} Bb4 {[%clk
01:30:33]} {[%emt 00:01:11]} 4. e3 {[%clk 01:30:39]} {[%emt 00:00:46]} O-O
{[%clk 01:29:17]} {[%emt 00:01:46]} 5. Bd3 {[%clk 01:29:11]} {[%emt 00:01:59]}
d5 {[%clk 01:28:28]} {[%emt 00:01:19]} 6. Nf3 {[%clk 01:26:00]} {[%emt
00:03:40]} c5 {[%clk 01:26:28]} {[%emt 00:02:30]} 7. cxd5 {[%clk 01:23:06]}
{[%emt 00:03:24]} exd5 {[%clk 01:25:11]} {[%emt 00:01:47]} 8. dxc5 {[%clk
01:17:24]} {[%emt 00:06:13]} Nc6 {[%clk 01:20:59]} {[%emt 00:04:42]} 9. O-O
{[%clk 01:15:42]} {[%emt 00:02:11]} Bg4 {[%clk 01:19:42]} {[%emt 00:01:47]} 10.
Na4 {[%clk 01:09:52]} {[%emt 00:06:21]} Qe7 {[%clk 00:57:57]} {[%emt 00:22:15]}
11. a3 {[%clk 01:05:38]} {[%emt 00:04:44]} Bxc5 {[%clk 00:53:03]} {[%emt
00:05:24]} 12. Nxc5 {[%clk 00:55:27]} {[%emt 00:10:41]} Qxc5 {[%clk 00:53:31]}
{[%emt 00:00:01]} 13. Bd2 {[%clk 00:49:02]} {[%emt 00:06:54]} Ne4 {[%clk
00:48:29]} {[%emt 00:05:32]} 14. Be2 {[%clk 00:44:47]} {[%emt 00:04:46]} Rfd8
{[%clk 00:43:32]} {[%emt 00:05:28]} 15. b4 {[%clk 00:43:08]} {[%emt 00:02:09]}
Qd6 {[%clk 00:41:10]} {[%emt 00:02:51]} 16. b5 {[%clk 00:38:06]} {[%emt
00:05:32]} Bxf3 {[%clk 00:37:56]} {[%emt 00:03:44]} 17. Bxf3 {[%clk 00:29:42]}
{[%emt 00:08:55]} Ne5 {[%clk 00:34:56]} {[%emt 00:03:29]} 18. Bb4 {[%clk
00:28:37]} {[%emt 00:01:36]} Nxf3+ {[%clk 00:31:10]} {[%emt 00:04:16]} 19. Qxf3
{[%clk 00:27:37]} {[%emt 00:01:29]} Qb6 {[%clk 00:30:51]} {[%emt 00:00:47]}
1/2-1/2

[Event "Schack-SM 2023: Veteran-SM 50+"]
[Site "Helsingborg Arena, Mellersta Stenbocksgatan 14, Helsingborg, Sweden"]
[Date "2023.07.07"]
[Round "7.5"]
[White "Ljung, Rickard"]
[Black "Kirppo, Ronny"]
[Result "1/2-1/2"]
[TimeControl "90 minutes for 40 moves + 30 minutes for the rest of games + 30 seconds per move from move one."]
[WhiteElo "1939"]
[BlackElo "1886"]

1. d4 {[%clk 01:30:55]} {[%emt 00:00:04]} Nf6 {[%clk 01:30:53]} {[%emt
00:00:07]} 2. Bf4 {[%clk 01:31:07]} {[%emt 00:00:19]} d5 {[%clk 01:31:04]}
{[%emt 00:00:19]} 3. e3 {[%clk 01:31:21]} {[%emt 00:00:15]} c5 {[%clk
01:31:20]} {[%emt 00:00:15]} 4. c3 {[%clk 01:31:46]} {[%emt 00:00:05]} e6
{[%clk 01:31:40]} {[%emt 00:00:09]} 5. Nf3 {[%clk 01:32:02]} {[%emt 00:00:14]}
Bd6 {[%clk 01:31:12]} {[%emt 00:00:59]} 6. Bxd6 {[%clk 01:28:33]} {[%emt
00:03:59]} Qxd6 {[%clk 01:31:35]} {[%emt 00:00:06]} 7. Ne5 {[%clk 01:28:20]}
{[%emt 00:00:44]} O-O {[%clk 01:30:00]} {[%emt 00:02:05]} 8. Bd3 {[%clk
01:28:31]} {[%emt 00:00:18]} b6 {[%clk 01:29:10]} {[%emt 00:01:20]} 9. O-O
{[%clk 01:28:09]} {[%emt 00:00:52]} Ba6 {[%clk 01:29:11]} {[%emt 00:00:30]} 10.
Bxa6 {[%clk 01:25:20]} {[%emt 00:03:19]} Nxa6 {[%clk 01:29:20]} {[%emt
00:00:20]} 11. Nd2 {[%clk 01:25:28]} {[%emt 00:00:22]} Nb8 {[%clk 01:16:28]}
{[%emt 00:13:22]} 12. Qe2 {[%clk 01:24:53]} {[%emt 00:01:05]} Nc6 {[%clk
01:12:48]} {[%emt 00:04:11]} 13. f4 {[%clk 01:24:46]} {[%emt 00:00:37]} Ne4
{[%clk 01:07:00]} {[%emt 00:06:18]} 14. Nxe4 {[%clk 01:22:17]} {[%emt
00:02:58]} dxe4 {[%clk 01:07:11]} {[%emt 00:00:19]} 15. Rfd1 {[%clk 01:21:40]}
{[%emt 00:01:07]} cxd4 {[%clk 00:45:20]} {[%emt 00:22:21]} 16. exd4 {[%clk
01:18:42]} {[%emt 00:03:28]} f6 {[%clk 00:45:29]} {[%emt 00:00:21]} 17. Nxc6
{[%clk 01:18:37]} {[%emt 00:00:36]} Qxc6 {[%clk 00:45:57]} {[%emt 00:00:01]} 18.
Rd2 {[%clk 01:16:50]} {[%emt 00:02:17]} Qc7 {[%emt 00:01:32]} 1/2-1/2

[Event "Schack-SM 2023: Mastarklassen"]
[Site "Helsingborg Arena, Mellersta Stenbocksgatan 14, Helsingborg, Sweden"]
[Date "2023.07.07"]
[Round "7.5"]
[White "Nilsson, Patrik 1978"]
[Black "Franzen, Per-Erik"]
[Result "1-0"]
[TimeControl "90 minutes for 40 moves + 30 minutes for the rest of games + 30 seconds per move from move one."]
[WhiteElo "2167"]
[BlackElo "2025"]

1. d4 {[%clk 01:30:55]} {[%emt 00:00:05]} Nf6 {[%clk 01:30:30]} {[%emt
00:00:30]} 2. Bf4 {[%clk 01:31:16]} {[%emt 00:00:09]} d5 {[%clk 01:30:40]}
{[%emt 00:00:21]} 3. e3 {[%clk 01:31:38]} {[%emt 00:00:07]} c5 {[%clk
01:30:35]} {[%emt 00:00:35]} 4. c3 {[%clk 01:32:00]} {[%emt 00:00:09]} Nc6
{[%clk 01:30:24]} {[%emt 00:00:41]} 5. Nd2 {[%clk 01:32:21]} {[%emt 00:00:08]}
Bf5 {[%emt 00:03:28]} 6. Ngf3 {[%clk 01:32:13]} {[%emt 00:00:27]} e6 {[%clk
01:25:18]} {[%emt 00:02:50]} 7. Qb3 {[%clk 01:32:00]} {[%emt 00:00:43]} Qc8
{[%clk 01:21:27]} {[%emt 00:04:21]} 8. c4 {[%clk 01:31:56]} {[%emt 00:00:33]}
cxd4 {[%clk 01:20:56]} {[%emt 00:01:01]} 9. Nxd4 {[%clk 01:32:16]} {[%emt
00:00:10]} Nxd4 {[%clk 01:19:56]} {[%emt 00:01:29]} 10. exd4 {[%clk 01:32:37]}
{[%emt 00:00:10]} Be7 {[%clk 01:14:58]} {[%emt 00:05:28]} 11. c5 {[%clk
01:31:44]} {[%emt 00:01:23]} O-O {[%clk 01:14:25]} {[%emt 00:01:03]} 12. Be2
{[%clk 01:31:17]} {[%emt 00:00:57]} b6 {[%clk 01:08:15]} {[%emt 00:06:41]} 13.
Rc1 {[%clk 01:12:23]} {[%emt 00:19:23]} bxc5 {[%clk 00:59:41]} {[%emt
00:09:04]} 14. dxc5 {[%clk 01:12:41]} {[%emt 00:00:12]} Bxc5 {[%clk 00:48:09]}
{[%emt 00:12:02]} 15. Qg3 {[%clk 00:55:46]} {[%emt 00:17:25]} a5 {[%clk
00:37:19]} {[%emt 00:11:20]} 16. Be5 {[%clk 00:49:33]} {[%emt 00:06:44]} Ne8
{[%clk 00:32:30]} {[%emt 00:05:19]} 17. O-O {[%clk 00:45:44]} {[%emt 00:04:18]}
f6 {[%clk 00:30:08]} {[%emt 00:02:52]} 18. Bf4 {[%clk 00:43:46]} {[%emt
00:02:27]} e5 {[%clk 00:22:25]} {[%emt 00:08:14]} 19. Nb3 {[%clk 00:42:27]}
{[%emt 00:01:49]} exf4 {[%clk 00:19:58]} {[%emt 00:02:57]} 20. Qxf4 {[%clk
00:42:14]} {[%emt 00:00:43]} Qe6 {[%clk 00:16:08]} {[%emt 00:04:20]} 21. Rxc5
{[%clk 00:32:51]} {[%emt 00:09:54]} Bg6 {[%clk 00:11:59]} {[%emt 00:04:38]} 22.
Nd4 {[%clk 00:29:51]} {[%emt 00:03:30]} Qe7 {[%clk 00:05:45]} {[%emt 00:06:44]}
23. Rfc1 {[%clk 00:28:39]} {[%emt 00:01:42]} Nd6 {[%clk 00:04:09]} {[%emt
00:02:06]} 24. Rxd5 {[%clk 00:26:21]} {[%emt 00:02:48]} Nf7 {[%clk 00:03:45]}
{[%emt 00:00:54]} 25. Bf3 {[%clk 00:19:43]} {[%emt 00:07:08]} Rac8 {[%clk
00:02:11]} {[%emt 00:02:04]} 26. Rd1 {[%clk 00:17:49]} {[%emt 00:02:25]} Ne5
{[%clk 00:01:55]} {[%emt 00:00:46]} 27. Be4 {[%clk 00:17:31]} {[%emt 00:00:47]}
Qb4 {[%clk 00:01:52]} {[%emt 00:00:33]} 28. b3 {[%clk 00:16:09]} {[%emt
00:01:53]} Rfd8 {[%clk 00:01:41]} {[%emt 00:00:40]} 29. Ne6 {[%clk 00:05:25]}
{[%emt 00:11:14]} Re8 {[%clk 00:01:14]} {[%emt 00:00:57]} 30. Bxg6 {[%emt
00:01:55]} hxg6 {[%emt 00:00:19]} 31. Qxb4 {[%clk 00:02:31]} {[%emt 00:02:42]}
axb4 {[%clk 00:01:12]} {[%emt 00:00:02]} 32. Nc5 {[%clk 00:02:52]} {[%emt
00:00:09]} Ra8 {[%clk 00:00:58]} {[%emt 00:00:42]} 33. Na4 {[%clk 00:02:02]}
{[%emt 00:01:20]} Rac8 {[%clk 00:00:55]} {[%emt 00:00:33]} 34. h3 {[%clk
00:01:47]} {[%emt 00:00:46]} g5 {[%clk 00:01:09]} {[%emt 00:00:15]} 35. R5d4
{[%clk 00:01:57]} {[%emt 00:00:20]} Rb8 {[%clk 00:01:09]} 36. Kf1 {[%clk
00:01:39]} {[%emt 00:01:19]} Kf7 {[%clk 00:00:53]} {[%emt 00:01:47]} 37. Nc5
{[%clk 00:01:19]} Rec8 {[%emt 00:00:53]} 38. Na6 Rb6 {[%clk 00:00:37]} {[%emt
00:00:42]} 39. Nxb4 {[%clk 00:01:41]} {[%emt 00:00:08]} Ke6 {[%emt 00:00:42]}
40. Nd5 {[%clk 00:01:32]} {[%emt 00:00:25]} Rb5 {[%clk 00:00:50]} {[%emt
00:00:18]} 41. Ne3 {[%clk 00:00:47]} {[%emt 00:01:14]} Rc6 {[%clk 00:29:31]}
{[%emt 00:01:50]} 42. Ke2 {[%clk 00:28:13]} {[%emt 00:03:04]} f5 {[%emt
00:01:54]} 43. g4 {[%clk 00:27:24]} {[%emt 00:00:07]} f4 {[%emt 00:03:31]} 44.
Nf5 g6 {[%clk 00:27:10]} {[%emt 00:00:08]} 45. Rd6+ {[%clk 00:27:35]} Rxd6
{[%clk 00:27:30]} {[%emt 00:00:29]} 46. Nxd6 {[%clk 00:27:34]} {[%emt
00:00:31]} Rd5 {[%clk 00:25:27]} {[%emt 00:02:33]} 47. Rxd5 {[%clk 00:26:40]}
{[%emt 00:01:24]} Kxd5 {[%clk 00:25:53]} {[%emt 00:00:03]} 48. Nb5 {[%clk
00:25:32]} {[%emt 00:01:39]} Ke4 {[%clk 00:25:49]} {[%emt 00:00:34]} 49. Nd6+
{[%clk 00:19:53]} {[%emt 00:06:10]} Kd4 {[%clk 00:25:19]} {[%emt 00:01:00]} 50.
Nc4 {[%clk 00:19:50]} {[%emt 00:00:33]} f3+ {[%clk 00:23:46]} {[%emt 00:02:02]}
51. Kd2 {[%clk 00:16:58]} {[%emt 00:03:23]} Nd3 {[%clk 00:23:29]} {[%emt
00:00:46]} 52. a4 {[%clk 00:17:17]} {[%emt 00:00:11]} Nxf2 {[%clk 00:23:39]}
{[%emt 00:00:20]} 53. a5 {[%clk 00:17:20]} {[%emt 00:00:28]} Ne4+ {[%clk
00:23:40]} {[%emt 00:00:28]} 54. Ke1 {[%clk 00:16:07]} {[%emt 00:01:43]} Nc5
{[%emt 00:10:55]} 55. Nd6 {[%clk 00:09:05]} {[%emt 00:00:25]} Ke3 {[%clk
00:17:31]} {[%emt 00:03:21]} 56. Kf1 {[%clk 00:05:50]} {[%emt 00:03:45]} Na6
{[%clk 00:06:40]} {[%emt 00:11:22]} 57. Nc4+ {[%clk 00:05:26]} {[%emt
00:00:54]} Kd4 {[%clk 00:05:51]} {[%emt 00:01:18]} 58. Kf2 {[%clk 00:05:16]}
{[%emt 00:00:40]} Kc3 {[%clk 00:05:03]} {[%emt 00:01:18]} 59. Kxf3 {[%clk
00:04:57]} {[%emt 00:00:49]} Kxb3 {[%clk 00:03:53]} {[%emt 00:01:40]} 60. Ne5
{[%clk 00:04:30]} Kb4 {[%clk 00:03:53]} 61. Nxg6 {[%clk 00:04:30]} Kxa5 {[%clk
00:03:53]} 62. Ke4 {[%clk 00:04:56]} {[%emt 00:02:45]} 1-0